[Event "Titled Tuesday Blitz March 15 Early 2022"]
[White "Weishaeutel, Moritz"]
[Black "Rengifo Blancas, Renzo Jhonathan"]
[WhiteFideId "12967300"]
[BlackFideId "3807185"]
[WhiteElo "2002"]
[BlackElo "2058"]
[Result "0-1"]
[Round "04"]
[TimeControl "180+1"]
[Date "2022.03.15"]
[WhiteClock "0:00:14"]
[BlackClock "0:00:36"]

1. e4 {[%clk 0:03:00]}  e5 {[%clk 0:02:59]} 2. Nf3 {[%clk 0:03:01]}  Nc6 {[%clk 0:02:59]} 3. Bb5 {[%clk 0:03:01]}  Nd4 {[%clk 0:02:57]} 4. Nxd4 {[%clk 0:02:58]}  exd4 {[%clk 0:02:57]} 5. O-O {[%clk 0:02:59]}  c6 {[%clk 0:02:57]} 6. Bc4 {[%clk 0:02:58]}  d5 {[%clk 0:02:57]} 7. exd5 {[%clk 0:02:59]}  cxd5 {[%clk 0:02:57]} 8. Re1+ {[%clk 0:02:52]}  Be7 {[%clk 0:02:56]} 9. Bb3 {[%clk 0:02:21]}  Nf6 {[%clk 0:02:44]} 10. Qe2 {[%clk 0:02:20]}  Be6 {[%clk 0:02:43]} 11. Ba4+ {[%clk 0:02:20]}  Nd7 {[%clk 0:02:42]} 12. d3 {[%clk 0:02:10]}  O-O {[%clk 0:02:41]} 13. Bxd7 {[%clk 0:02:01]}  Qxd7 {[%clk 0:02:39]} 14. Nd2 {[%clk 0:02:01]}  Bf6 {[%clk 0:02:35]} 15. Nf3 {[%clk 0:01:56]}  Rfe8 {[%clk 0:02:34]} 16. Qf1 {[%clk 0:00:59]}  Bg4 {[%clk 0:02:26]} 17. Bg5 {[%clk 0:00:58]}  Bxf3 {[%clk 0:02:15]} 18. Bxf6 {[%clk 0:00:59]}  Qg4 {[%clk 0:02:15]} 19. Be5 {[%clk 0:00:27]}  f6 {[%clk 0:02:04]} 20. Bg3 {[%clk 0:00:23]}  Be2 {[%clk 0:02:03]} 21. f3 {[%clk 0:00:20]}  Bxf1 {[%clk 0:02:03]} 22. fxg4 {[%clk 0:00:20]}  Be2 {[%clk 0:02:01]} 23. h3 {[%clk 0:00:20]}  Rac8 {[%clk 0:01:52]} 24. Rac1 {[%clk 0:00:21]}  Re6 {[%clk 0:01:38]} 25. Kf2 {[%clk 0:00:20]}  Rce8 {[%clk 0:01:38]} 26. Bf4 {[%clk 0:00:11]}  h5 {[%clk 0:01:37]} 27. g5 {[%clk 0:00:08]}  fxg5 {[%clk 0:01:30]} 28. Bxg5 {[%clk 0:00:09]}  Rf8+ {[%clk 0:01:10]} 29. Kg1 {[%clk 0:00:09]}  Rf5 {[%clk 0:01:10]} 30. h4 {[%clk 0:00:07]}  Kf7 {[%clk 0:01:05]} 31. g3 {[%clk 0:00:06]}  Bg4 {[%clk 0:00:59]} 32. Rxe6 {[%clk 0:00:06]}  Kxe6 {[%clk 0:01:00]} 33. Re1+ {[%clk 0:00:07]}  Re5 {[%clk 0:01:00]} 34. Rxe5+ {[%clk 0:00:05]}  Kxe5 {[%clk 0:01:01]} 35. Bf4+ {[%clk 0:00:02]}  Ke6 {[%clk 0:01:00]} 36. Bb8 {[%clk 0:00:02]}  Bd1 {[%clk 0:00:57]} 37. Bxa7 {[%clk 0:00:01]}  Bxc2 {[%clk 0:00:57]} 38. Bxd4 {[%clk 0:00:02]}  g6 {[%clk 0:00:57]} 39. Kf2 {[%clk 0:00:01]}  Bxd3 {[%clk 0:00:56]} 40. Ke3 {[%clk 0:00:02]}  Bb1 {[%clk 0:00:56]} 41. b3 {[%clk 0:00:03]}  Kf5 {[%clk 0:00:56]} 42. b4 {[%clk 0:00:04]}  Kg4 {[%clk 0:00:55]} 43. Be5 {[%clk 0:00:03]}  Bxa2 {[%clk 0:00:55]} 44. Kd4 {[%clk 0:00:03]}  Bc4 {[%clk 0:00:56]} 45. Bf4 {[%clk 0:00:03]}  b5 {[%clk 0:00:54]} 46. Bd6 {[%clk 0:00:04]}  Kf3 {[%clk 0:00:53]} 47. Bf4 {[%clk 0:00:04]}  Ke2 {[%clk 0:00:54]} 48. Bd6 {[%clk 0:00:04]}  Kd2 {[%clk 0:00:54]} 49. Bb8 {[%clk 0:00:05]}  Kc2 {[%clk 0:00:54]} 50. Bd6 {[%clk 0:00:06]}  Kb3 {[%clk 0:00:54]} 51. Bc5 {[%clk 0:00:07]}  Ka3 {[%clk 0:00:47]} 52. Ke5 {[%clk 0:00:05]}  Kb2 {[%clk 0:00:47]} 53. Kf6 {[%clk 0:00:04]}  Kc3 {[%clk 0:00:46]} 54. Kxg6 {[%clk 0:00:04]}  Be2 {[%clk 0:00:46]} 55. Kg5 {[%clk 0:00:02]}  d4 {[%clk 0:00:41]} 56. Kf4 {[%clk 0:00:01]}  d3 {[%clk 0:00:40]} 57. Ke3 {[%clk 0:00:02]}  d2 {[%clk 0:00:38]} 58. Kxe2 {[%clk 0:00:02]}  Kc2 {[%clk 0:00:38]} 59. Ke3 {[%clk 0:00:02]}  d1=Q {[%clk 0:00:38]} 60. Kf4 {[%clk 0:00:03]}  Qg4+ {[%clk 0:00:36]} 61. Ke5 {[%clk 0:00:03]}  Qxg3+ {[%clk 0:00:36]} 62. Kf5 {[%clk 0:00:04]}  Qxh4 {[%clk 0:00:37]} 63. Kg6 {[%clk 0:00:05]}  Qg4+ {[%clk 0:00:37]} 64. Kh6 {[%clk 0:00:05]}  h4 {[%clk 0:00:37]} 65. Kh7 {[%clk 0:00:06]}  h3 {[%clk 0:00:38]} 66. Bd6 {[%clk 0:00:06]}  h2 {[%clk 0:00:38]} 67. Bxh2 {[%clk 0:00:06]}  Qh4+ {[%clk 0:00:38]} 68. Kg6 {[%clk 0:00:06]}  Qxh2 {[%clk 0:00:39]} 69. Kf5 {[%clk 0:00:07]}  Qd2 {[%clk 0:00:38]} 70. Ke5 {[%clk 0:00:08]}  Qxb4 {[%clk 0:00:38]} 71. Kd5 {[%clk 0:00:09]}  Qc4+ {[%clk 0:00:38]} 72. Kd6 {[%clk 0:00:09]}  b4 {[%clk 0:00:38]} 73. Kd7 {[%clk 0:00:10]}  b3 {[%clk 0:00:39]} 74. Kd8 {[%clk 0:00:11]}  b2 {[%clk 0:00:38]} 75. Kd7 {[%clk 0:00:12]}  b1=Q {[%clk 0:00:37]} 76. Ke7 {[%clk 0:00:13]}  Qd1 {[%clk 0:00:36]} 77. Ke8 {[%clk 0:00:14]}  Qce2+ {[%clk 0:00:36]} 78. Kf8 {[%clk 0:00:14]}  Qdf1+ {[%clk 0:00:36]} 0-1


[Site "https://www.chess.com"]

[Event "Titled Tuesday Blitz March 15 Early 2022"]
[White "Xie, Bryan"]
[Black "Gontcharov, Vladislav"]
[WhiteFideId "30941296"]
[BlackFideId "4123492"]
[WhiteElo "1899"]
[BlackElo "2503"]
[Result "0-1"]
[Round "04"]
[TimeControl "180+1"]
[Date "2022.03.15"]
[WhiteClock "0:00:01"]
[BlackClock "0:01:08"]

1. e4 {[%clk 0:03:00]}  e6 {[%clk 0:02:58]} 2. d4 {[%clk 0:02:57]}  d5 {[%clk 0:02:58]} 3. Nc3 {[%clk 0:02:58]}  Bb4 {[%clk 0:02:58]} 4. e5 {[%clk 0:02:58]}  c5 {[%clk 0:02:56]} 5. a3 {[%clk 0:02:58]}  Bxc3+ {[%clk 0:02:55]} 6. bxc3 {[%clk 0:02:59]}  Ne7 {[%clk 0:02:55]} 7. Qg4 {[%clk 0:02:53]}  O-O {[%clk 0:02:54]} 8. Bg5 {[%clk 0:02:45]}  Qa5 {[%clk 0:02:53]} 9. Ne2 {[%clk 0:02:39]}  Nbc6 {[%clk 0:02:48]} 10. h4 {[%clk 0:02:10]}  Nf5 {[%clk 0:02:46]} 11. Bd2 {[%clk 0:01:57]}  Qa4 {[%clk 0:02:44]} 12. h5 {[%clk 0:01:10]}  h6 {[%clk 0:02:36]} 13. Ng3 {[%clk 0:00:53]}  cxd4 {[%clk 0:02:03]} 14. Nxf5 {[%clk 0:00:47]}  exf5 {[%clk 0:02:03]} 15. Qg3 {[%clk 0:00:46]}  Kh8 {[%clk 0:02:03]} 16. Rh4 {[%clk 0:00:44]}  Qxc2 {[%clk 0:01:58]} 17. cxd4 {[%clk 0:00:20]}  Be6 {[%clk 0:01:43]} 18. Rc1 {[%clk 0:00:06]}  Qb2 {[%clk 0:01:41]} 19. Qe3 {[%clk 0:00:02]}  Rac8 {[%clk 0:01:34]} 20. Be2 {[%clk 0:00:01]}  b6 {[%clk 0:01:13]} 21. g4 {[%clk 0:00:01]}  Na5 {[%clk 0:01:10]} 22. gxf5 {[%clk 0:00:01]}  Bxf5 {[%clk 0:01:08]} 0-1


[Site "https://www.chess.com"]

[Event "Titled Tuesday Blitz March 15 Early 2022"]
[White "Xu, Yi"]
[Black "Krasilnikov, Evgeni"]
[WhiteFideId "8605564"]
[BlackFideId "4139739"]
[WhiteElo "2471"]
[BlackElo "2206"]
[Result "1-0"]
[Round "04"]
[TimeControl "180+1"]
[Date "2022.03.15"]
[WhiteClock "0:00:35"]
[BlackClock "0:00:15"]

1. e4 {[%clk 0:03:00]}  c6 {[%clk 0:02:59]} 2. d4 {[%clk 0:03:00]}  d5 {[%clk 0:02:59]} 3. e5 {[%clk 0:02:59]}  Bf5 {[%clk 0:02:59]} 4. h4 {[%clk 0:02:59]}  h6 {[%clk 0:02:54]} 5. g4 {[%clk 0:02:58]}  Bd7 {[%clk 0:02:53]} 6. Nc3 {[%clk 0:02:54]}  e6 {[%clk 0:02:52]} 7. Be3 {[%clk 0:02:52]}  c5 {[%clk 0:02:43]} 8. dxc5 {[%clk 0:02:50]}  Qa5 {[%clk 0:02:26]} 9. a3 {[%clk 0:02:47]}  Qc7 {[%clk 0:02:08]} 10. f4 {[%clk 0:02:29]}  Bxc5 {[%clk 0:02:06]} 11. Bxc5 {[%clk 0:02:29]}  Qxc5 {[%clk 0:02:05]} 12. Qd2 {[%clk 0:02:30]}  Ne7 {[%clk 0:02:03]} 13. h5 {[%clk 0:02:25]}  Bc6 {[%clk 0:01:51]} 14. O-O-O {[%clk 0:02:10]}  Nd7 {[%clk 0:01:46]} 15. Bd3 {[%clk 0:01:50]}  O-O-O {[%clk 0:01:37]} 16. Nf3 {[%clk 0:01:47]}  Kb8 {[%clk 0:01:34]} 17. Ne2 {[%clk 0:01:40]}  Qb6 {[%clk 0:01:25]} 18. Ned4 {[%clk 0:01:37]}  Nc5 {[%clk 0:01:25]} 19. Qb4 {[%clk 0:01:38]}  Qxb4 {[%clk 0:01:18]} 20. axb4 {[%clk 0:01:38]}  Ne4 {[%clk 0:01:16]} 21. Rh2 {[%clk 0:01:35]}  a6 {[%clk 0:01:08]} 22. Rg1 {[%clk 0:01:34]}  Bd7 {[%clk 0:01:07]} 23. g5 {[%clk 0:01:33]}  hxg5 {[%clk 0:01:04]} 24. Nxg5 {[%clk 0:01:31]}  Nxg5 {[%clk 0:01:03]} 25. fxg5 {[%clk 0:01:31]}  Nc6 {[%clk 0:00:53]} 26. Nxc6+ {[%clk 0:01:29]}  Bxc6 {[%clk 0:00:54]} 27. Rf1 {[%clk 0:01:15]}  Rdf8 {[%clk 0:00:47]} 28. h6 {[%clk 0:01:12]}  gxh6 {[%clk 0:00:43]} 29. gxh6 {[%clk 0:01:10]}  Bb5 {[%clk 0:00:39]} 30. Bxb5 {[%clk 0:01:08]}  axb5 {[%clk 0:00:40]} 31. h7 {[%clk 0:01:08]}  Kc7 {[%clk 0:00:38]} 32. Rf6 {[%clk 0:01:07]}  Kd7 {[%clk 0:00:38]} 33. Kd2 {[%clk 0:01:07]}  Ke7 {[%clk 0:00:38]} 34. Kd3 {[%clk 0:01:06]}  Rc8 {[%clk 0:00:34]} 35. b3 {[%clk 0:01:03]}  d4 {[%clk 0:00:26]} 36. Rf4 {[%clk 0:01:00]}  Rc3+ {[%clk 0:00:24]} 37. Kxd4 {[%clk 0:00:56]}  Rg3 {[%clk 0:00:24]} 38. Kc5 {[%clk 0:00:53]}  Rg5 {[%clk 0:00:19]} 39. Re4 {[%clk 0:00:50]}  f5 {[%clk 0:00:17]} 40. Reh4 {[%clk 0:00:43]}  Rg4 {[%clk 0:00:15]} 41. Rxg4 {[%clk 0:00:41]}  fxg4 {[%clk 0:00:16]} 42. Kxb5 {[%clk 0:00:41]}  g3 {[%clk 0:00:15]} 43. Rg2 {[%clk 0:00:35]} 1-0


[Site "https://www.chess.com"]

[Event "Titled Tuesday Blitz March 15 Early 2022"]
[White "Zhigalko, Sergei"]
[Black "Omariev, Maksim"]
[WhiteFideId "13502956"]
[BlackFideId "4193423"]
[WhiteElo "2662"]
[BlackElo "2458"]
[Result "1-0"]
[Round "04"]
[TimeControl "180+1"]
[Date "2022.03.15"]
[WhiteClock "0:00:17"]
[BlackClock "0:00:02"]

1. e4 {[%clk 0:03:00]}  c5 {[%clk 0:02:59]} 2. Nf3 {[%clk 0:03:00]}  d6 {[%clk 0:03:00]} 3. d4 {[%clk 0:02:56]}  cxd4 {[%clk 0:03:00]} 4. Qxd4 {[%clk 0:02:57]}  a6 {[%clk 0:03:00]} 5. Bc4 {[%clk 0:02:57]}  Nc6 {[%clk 0:02:59]} 6. Qd3 {[%clk 0:02:57]}  g6 {[%clk 0:02:44]} 7. Nc3 {[%clk 0:02:57]}  Bg7 {[%clk 0:02:44]} 8. Bb3 {[%clk 0:02:57]}  Nf6 {[%clk 0:02:37]} 9. Bg5 {[%clk 0:02:57]}  O-O {[%clk 0:02:29]} 10. O-O-O {[%clk 0:02:57]}  Be6 {[%clk 0:02:15]} 11. Kb1 {[%clk 0:02:54]}  Bxb3 {[%clk 0:02:09]} 12. cxb3 {[%clk 0:02:51]}  Rc8 {[%clk 0:01:58]} 13. Rhe1 {[%clk 0:02:48]}  Re8 {[%clk 0:01:52]} 14. h3 {[%clk 0:02:46]}  Qa5 {[%clk 0:01:50]} 15. a3 {[%clk 0:02:37]}  Nd7 {[%clk 0:01:43]} 16. b4 {[%clk 0:02:28]}  Nxb4 {[%clk 0:01:35]} 17. axb4 {[%clk 0:02:19]}  Qxb4 {[%clk 0:01:36]} 18. Bd2 {[%clk 0:01:39]}  Nc5 {[%clk 0:01:27]} 19. Qc2 {[%clk 0:01:34]}  Nb3 {[%clk 0:00:48]} 20. e5 {[%clk 0:01:24]}  dxe5 {[%clk 0:00:19]} 21. Nxe5 {[%clk 0:01:07]}  Nd4 {[%clk 0:00:06]} 22. Qd3 {[%clk 0:00:53]}  Red8 {[%clk 0:00:06]} 23. Nd5 {[%clk 0:00:19]}  Qc5 {[%clk 0:00:06]} 24. Nxe7+ {[%clk 0:00:19]}  Qxe7 {[%clk 0:00:06]} 25. Nxg6 {[%clk 0:00:19]}  Qf6 {[%clk 0:00:03]} 26. Ne7+ {[%clk 0:00:17]}  Kh8 {[%clk 0:00:02]} 27. Bc3 {[%clk 0:00:16]}  Rc7 {[%clk 0:00:02]} 28. Nf5 {[%clk 0:00:17]}  Qxf5 {[%clk 0:00:01]} 29. Qxf5 {[%clk 0:00:16]}  Nxf5 {[%clk 0:00:02]} 30. Rxd8# {[%clk 0:00:17]} 1-0


[Site "https://www.chess.com"]

[Event "Titled Tuesday Blitz March 15 Early 2022"]
[White "Araujo Filho, Luiz Antonio Coel"]
[Black "Bodnaruk, Anastasia"]
[WhiteFideId "2130661"]
[BlackFideId "4181751"]
[WhiteElo "2195"]
[BlackElo "2393"]
[Result "1/2-1/2"]
[Round "05"]
[TimeControl "180+1"]
[Date "2022.03.15"]
[WhiteClock "0:00:05"]
[BlackClock "0:00:06"]

1. d4 {[%clk 0:02:40]}  Nf6 {[%clk 0:02:59]} 2. Nf3 {[%clk 0:02:39]}  g6 {[%clk 0:03:00]} 3. c4 {[%clk 0:02:36]}  Bg7 {[%clk 0:03:00]} 4. Nc3 {[%clk 0:02:33]}  O-O {[%clk 0:02:59]} 5. e4 {[%clk 0:02:33]}  d6 {[%clk 0:03:00]} 6. Be2 {[%clk 0:02:33]}  e5 {[%clk 0:03:00]} 7. dxe5 {[%clk 0:02:32]}  dxe5 {[%clk 0:03:00]} 8. O-O {[%clk 0:02:31]}  c6 {[%clk 0:02:54]} 9. Qc2 {[%clk 0:02:30]}  Nbd7 {[%clk 0:02:49]} 10. Rd1 {[%clk 0:02:30]}  Qe7 {[%clk 0:02:49]} 11. Rb1 {[%clk 0:02:29]}  Nh5 {[%clk 0:02:44]} 12. h3 {[%clk 0:02:23]}  Nf4 {[%clk 0:02:40]} 13. Bf1 {[%clk 0:02:23]}  Nc5 {[%clk 0:02:40]} 14. b4 {[%clk 0:02:21]}  Nce6 {[%clk 0:02:40]} 15. Be3 {[%clk 0:02:13]}  g5 {[%clk 0:02:12]} 16. b5 {[%clk 0:01:57]}  h5 {[%clk 0:02:04]} 17. bxc6 {[%clk 0:01:50]}  bxc6 {[%clk 0:02:04]} 18. Qa4 {[%clk 0:01:50]}  g4 {[%clk 0:01:51]} 19. hxg4 {[%clk 0:01:43]}  hxg4 {[%clk 0:01:51]} 20. Nd2 {[%clk 0:01:38]}  Nd4 {[%clk 0:01:36]} 21. g3 {[%clk 0:01:31]}  Nfe6 {[%clk 0:01:27]} 22. Ne2 {[%clk 0:01:21]}  Ng5 {[%clk 0:01:20]} 23. Nxd4 {[%clk 0:01:13]}  exd4 {[%clk 0:01:19]} 24. Bxg5 {[%clk 0:01:13]}  Qxg5 {[%clk 0:01:20]} 25. Qxc6 {[%clk 0:01:11]}  Be6 {[%clk 0:01:19]} 26. Bd3 {[%clk 0:00:59]}  Be5 {[%clk 0:01:10]} 27. Qc5 {[%clk 0:00:48]}  Kg7 {[%clk 0:01:03]} 28. Rb5 {[%clk 0:00:45]}  f6 {[%clk 0:01:02]} 29. Nb3 {[%clk 0:00:33]}  Qh6 {[%clk 0:00:27]} 30. Nxd4 {[%clk 0:00:29]}  Bxd4 {[%clk 0:00:26]} 31. Qxd4 {[%clk 0:00:28]}  Rh8 {[%clk 0:00:27]} 32. Kf1 {[%clk 0:00:19]}  Rad8 {[%clk 0:00:22]} 33. Rb7+ {[%clk 0:00:16]}  Kg6 {[%clk 0:00:20]} 34. e5+ {[%clk 0:00:15]}  Kh5 {[%clk 0:00:09]} 35. Qe4 {[%clk 0:00:10]}  f5 {[%clk 0:00:06]} 36. Qh1+ {[%clk 0:00:08]}  Kg5 {[%clk 0:00:04]} 37. Qxh6+ {[%clk 0:00:07]}  Kxh6 {[%clk 0:00:05]} 38. Rxa7 {[%clk 0:00:06]}  Bxc4 {[%clk 0:00:04]} 39. Ke2 {[%clk 0:00:02]}  Rhe8 {[%clk 0:00:04]} 40. Ra5 {[%clk 0:00:01]}  Rd4 {[%clk 0:00:03]} 41. Bxc4 {[%clk 0:00:01]}  Rxc4 {[%clk 0:00:03]} 42. Rd2 {[%clk 0:00:01]}  Re4+ {[%clk 0:00:03]} 43. Kf1 {[%clk 0:00:02]}  R4xe5 {[%clk 0:00:03]} 44. Rxe5 {[%clk 0:00:01]}  Rxe5 {[%clk 0:00:03]} 45. Kg2 {[%clk 0:00:02]}  Ra5 {[%clk 0:00:03]} 46. Rb2 {[%clk 0:00:02]}  Kg5 {[%clk 0:00:03]} 47. Rc2 {[%clk 0:00:03]}  Ra3 {[%clk 0:00:04]} 48. Rb2 {[%clk 0:00:03]}  Kg6 {[%clk 0:00:03]} 49. Rc2 {[%clk 0:00:04]}  Kf6 {[%clk 0:00:04]} 50. Rb2 {[%clk 0:00:04]}  Ke5 {[%clk 0:00:04]} 51. Rc2 {[%clk 0:00:04]}  Ra5 {[%clk 0:00:04]} 52. Rb2 {[%clk 0:00:04]}  Kd4 {[%clk 0:00:04]} 53. Rc2 {[%clk 0:00:04]}  Kd3 {[%clk 0:00:05]} 54. Rb2 {[%clk 0:00:05]}  Kc3 {[%clk 0:00:05]} 55. Re2 {[%clk 0:00:04]}  Kd3 {[%clk 0:00:05]} 56. Rb2 {[%clk 0:00:04]}  Kc3 {[%clk 0:00:05]} 57. Re2 {[%clk 0:00:04]}  Kd3 {[%clk 0:00:06]} 58. Rb2 {[%clk 0:00:05]} 1/2-1/2


[Site "https://www.chess.com"]

[Event "Titled Tuesday Blitz March 15 Early 2022"]
[White "Barp, Alberto"]
[Black "Bok, Benjamin"]
[WhiteFideId "872555"]
[BlackFideId "1017063"]
[WhiteElo "2663"]
[BlackElo "2932"]
[Result "1-0"]
[Round "05"]
[TimeControl "180+1"]
[Date "2022.03.15"]
[WhiteClock "0:00:03"]
[BlackClock "0:00:03"]

1. d4 {[%clk 0:02:57]}  d5 {[%clk 0:02:58]} 2. c4 {[%clk 0:02:57]}  c6 {[%clk 0:02:59]} 3. cxd5 {[%clk 0:02:54]}  cxd5 {[%clk 0:03:00]} 4. Bf4 {[%clk 0:02:54]}  Nf6 {[%clk 0:02:59]} 5. e3 {[%clk 0:02:55]}  Nc6 {[%clk 0:03:00]} 6. Nc3 {[%clk 0:02:55]}  Bf5 {[%clk 0:03:00]} 7. Nf3 {[%clk 0:02:55]}  e6 {[%clk 0:02:58]} 8. Qb3 {[%clk 0:02:55]}  Bb4 {[%clk 0:02:57]} 9. Ne5 {[%clk 0:02:51]}  Bxc3+ {[%clk 0:02:55]} 10. Qxc3 {[%clk 0:02:47]}  Nxe5 {[%clk 0:02:53]} 11. Bxe5 {[%clk 0:02:46]}  O-O {[%clk 0:02:52]} 12. Bd3 {[%clk 0:02:10]}  Rc8 {[%clk 0:02:50]} 13. Qd2 {[%clk 0:02:09]}  Bxd3 {[%clk 0:02:48]} 14. Qxd3 {[%clk 0:02:09]}  Qa5+ {[%clk 0:02:44]} 15. Ke2 {[%clk 0:02:07]}  Rc6 {[%clk 0:02:13]} 16. Rhc1 {[%clk 0:01:56]}  Rfc8 {[%clk 0:01:38]} 17. Rxc6 {[%clk 0:01:49]}  Rxc6 {[%clk 0:01:39]} 18. Bxf6 {[%clk 0:01:41]}  gxf6 {[%clk 0:01:39]} 19. a3 {[%clk 0:01:39]}  Qc7 {[%clk 0:01:35]} 20. Rd1 {[%clk 0:01:32]}  Qxh2 {[%clk 0:01:34]} 21. g3 {[%clk 0:01:29]}  Qh5+ {[%clk 0:01:31]} 22. Kd2 {[%clk 0:01:14]}  Qf3 {[%clk 0:01:28]} 23. Ke1 {[%clk 0:01:11]}  Kg7 {[%clk 0:01:23]} 24. Qb3 {[%clk 0:01:09]}  b6 {[%clk 0:01:18]} 25. Qa4 {[%clk 0:01:06]}  Rc7 {[%clk 0:01:16]} 26. Qb3 {[%clk 0:01:05]}  h5 {[%clk 0:01:11]} 27. Qd3 {[%clk 0:01:02]}  f5 {[%clk 0:01:05]} 28. Qb1 {[%clk 0:00:58]}  Kf6 {[%clk 0:00:52]} 29. Qd3 {[%clk 0:00:58]}  Kg5 {[%clk 0:00:48]} 30. Qb1 {[%clk 0:00:51]}  Kg4 {[%clk 0:00:26]} 31. Qd3 {[%clk 0:00:50]}  f6 {[%clk 0:00:23]} 32. Rb1 {[%clk 0:00:41]}  Qe4 {[%clk 0:00:09]} 33. Qd1+ {[%clk 0:00:24]}  Kg5 {[%clk 0:00:09]} 34. Kd2 {[%clk 0:00:20]}  Qg2 {[%clk 0:00:03]} 35. Qe2 {[%clk 0:00:16]}  Kg6 {[%clk 0:00:03]} 36. Rc1 {[%clk 0:00:13]}  Rxc1 {[%clk 0:00:02]} 37. Kxc1 {[%clk 0:00:14]}  Qh1+ {[%clk 0:00:01]} 38. Kc2 {[%clk 0:00:14]}  Qe4+ {[%clk 0:00:01]} 39. Kc3 {[%clk 0:00:13]}  Qb1 {[%clk 0:00:01]} 40. Kb3 {[%clk 0:00:13]}  Qc1 {[%clk 0:00:01]} 41. Qb5 {[%clk 0:00:10]}  Qd1+ {[%clk 0:00:01]} 42. Ka2 {[%clk 0:00:10]}  Qc2 {[%clk 0:00:01]} 43. Qe8+ {[%clk 0:00:09]}  Kg5 {[%clk 0:00:01]} 44. Qg8+ {[%clk 0:00:08]}  Kh6 {[%clk 0:00:02]} 45. Qxe6 {[%clk 0:00:08]}  Kg5 {[%clk 0:00:02]} 46. Qg8+ {[%clk 0:00:08]}  Kh6 {[%clk 0:00:02]} 47. Qxd5 {[%clk 0:00:08]}  Qxf2 {[%clk 0:00:02]} 48. Qg8 {[%clk 0:00:07]}  Qxe3 {[%clk 0:00:02]} 49. Qh8+ {[%clk 0:00:05]}  Kg6 {[%clk 0:00:03]} 50. Qg8+ {[%clk 0:00:04]}  Kh6 {[%clk 0:00:03]} 51. d5 {[%clk 0:00:04]}  Qe5 {[%clk 0:00:03]} 52. Qf8+ {[%clk 0:00:04]}  Kg5 {[%clk 0:00:03]} 53. Qg7# {[%clk 0:00:03]} 1-0


[Site "https://www.chess.com"]

[Event "Titled Tuesday Blitz March 15 Early 2022"]
[White "Beerdsen, Thomas"]
[Black "Khamzin, Olzhas"]
[WhiteFideId "1030108"]
[BlackFideId "13701690"]
[WhiteElo "2585"]
[BlackElo "2194"]
[Result "1-0"]
[Round "05"]
[TimeControl "180+1"]
[Date "2022.03.15"]
[WhiteClock "0:01:32"]
[BlackClock "0:00:19"]

1. e4 {[%clk 0:03:00]}  e5 {[%clk 0:02:57]} 2. Nf3 {[%clk 0:02:59]}  Nc6 {[%clk 0:02:57]} 3. d4 {[%clk 0:03:00]}  exd4 {[%clk 0:02:55]} 4. Bc4 {[%clk 0:03:01]}  Nf6 {[%clk 0:02:27]} 5. O-O {[%clk 0:03:00]}  d5 {[%clk 0:02:20]} 6. exd5 {[%clk 0:02:58]}  Nxd5 {[%clk 0:02:14]} 7. Nxd4 {[%clk 0:02:46]}  Nxd4 {[%clk 0:02:08]} 8. Qxd4 {[%clk 0:02:47]}  Be6 {[%clk 0:02:09]} 9. Re1 {[%clk 0:02:46]}  Be7 {[%clk 0:01:39]} 10. Qxg7 {[%clk 0:02:27]}  Bf6 {[%clk 0:01:38]} 11. Qh6 {[%clk 0:02:23]}  Bd4 {[%clk 0:00:36]} 12. Rxe6+ {[%clk 0:02:04]}  fxe6 {[%clk 0:00:35]} 13. Qxe6+ {[%clk 0:02:05]}  Ne7 {[%clk 0:00:36]} 14. Qf7+ {[%clk 0:02:03]}  Kd7 {[%clk 0:00:36]} 15. Nc3 {[%clk 0:01:52]}  Qf8 {[%clk 0:00:29]} 16. Qe6+ {[%clk 0:01:50]}  Ke8 {[%clk 0:00:30]} 17. Ne4 {[%clk 0:01:48]}  Rd8 {[%clk 0:00:24]} 18. Bg5 {[%clk 0:01:44]}  Rd7 {[%clk 0:00:20]} 19. Nf6+ {[%clk 0:01:33]}  Bxf6 {[%clk 0:00:19]} 20. Bxf6 {[%clk 0:01:33]}  Rg8 {[%clk 0:00:20]} 21. Bxe7 {[%clk 0:01:32]}  Rg6 {[%clk 0:00:19]} 22. Qxd7+ {[%clk 0:01:31]}  Kxd7 {[%clk 0:00:19]} 23. Bxf8 {[%clk 0:01:32]} 1-0


[Site "https://www.chess.com"]

[Event "Titled Tuesday Blitz March 15 Early 2022"]
[White "Brunner, Nicolas"]
[Black "Milosevic, Milos"]
[WhiteFideId "620246"]
[BlackFideId "964875"]
[WhiteElo "2372"]
[BlackElo "2237"]
[Result "1/2-1/2"]
[Round "05"]
[TimeControl "180+1"]
[Date "2022.03.15"]
[WhiteClock "0:00:22"]
[BlackClock "0:01:03"]

1. d4 {[%clk 0:02:56]}  d5 {[%clk 0:03:00]} 2. c4 {[%clk 0:02:55]}  e6 {[%clk 0:03:01]} 3. Nf3 {[%clk 0:02:55]}  c5 {[%clk 0:03:00]} 4. cxd5 {[%clk 0:02:52]}  exd5 {[%clk 0:03:01]} 5. g3 {[%clk 0:02:52]}  Nf6 {[%clk 0:02:58]} 6. Nc3 {[%clk 0:02:51]}  Nc6 {[%clk 0:02:56]} 7. Bg2 {[%clk 0:02:51]}  h6 {[%clk 0:02:52]} 8. O-O {[%clk 0:02:48]}  Be6 {[%clk 0:02:52]} 9. Be3 {[%clk 0:02:30]}  cxd4 {[%clk 0:02:35]} 10. Nxd4 {[%clk 0:02:29]}  Be7 {[%clk 0:02:35]} 11. Nxc6 {[%clk 0:02:14]}  bxc6 {[%clk 0:02:32]} 12. Na4 {[%clk 0:02:14]}  O-O {[%clk 0:02:29]} 13. Rc1 {[%clk 0:02:13]}  Bd7 {[%clk 0:02:29]} 14. Bc5 {[%clk 0:02:12]}  Bxc5 {[%clk 0:02:24]} 15. Nxc5 {[%clk 0:02:11]}  Rc8 {[%clk 0:02:19]} 16. e4 {[%clk 0:01:55]}  dxe4 {[%clk 0:02:15]} 17. Nxe4 {[%clk 0:01:55]}  Nxe4 {[%clk 0:02:12]} 18. Bxe4 {[%clk 0:01:55]}  c5 {[%clk 0:02:13]} 19. b3 {[%clk 0:01:53]}  Be6 {[%clk 0:02:09]} 20. Qxd8 {[%clk 0:01:34]}  Rfxd8 {[%clk 0:02:10]} 21. Rfd1 {[%clk 0:01:34]}  Rxd1+ {[%clk 0:02:05]} 22. Rxd1 {[%clk 0:01:33]}  Kf8 {[%clk 0:02:05]} 23. Rc1 {[%clk 0:01:10]}  c4 {[%clk 0:02:03]} 24. bxc4 {[%clk 0:01:08]}  Rxc4 {[%clk 0:02:02]} 25. Rxc4 {[%clk 0:01:08]}  Bxc4 {[%clk 0:02:03]} 26. a3 {[%clk 0:01:07]}  Ke7 {[%clk 0:01:59]} 27. f4 {[%clk 0:01:05]}  Kd6 {[%clk 0:02:00]} 28. Kf2 {[%clk 0:01:05]}  Kc5 {[%clk 0:01:59]} 29. Ke3 {[%clk 0:01:05]}  Bd5 {[%clk 0:01:57]} 30. Bd3 {[%clk 0:01:02]}  g6 {[%clk 0:01:53]} 31. h4 {[%clk 0:01:00]}  Be6 {[%clk 0:01:52]} 32. Be2 {[%clk 0:00:55]}  Kd5 {[%clk 0:01:49]} 33. Bd3 {[%clk 0:00:50]}  a5 {[%clk 0:01:49]} 34. Be2 {[%clk 0:00:49]}  Bd7 {[%clk 0:01:46]} 35. Bd3 {[%clk 0:00:47]}  Bf5 {[%clk 0:01:40]} 36. Be2 {[%clk 0:00:43]}  f6 {[%clk 0:01:37]} 37. Bb5 {[%clk 0:00:37]}  Kc5 {[%clk 0:01:37]} 38. Be2 {[%clk 0:00:36]}  Be6 {[%clk 0:01:32]} 39. Bd3 {[%clk 0:00:36]}  g5 {[%clk 0:01:28]} 40. fxg5 {[%clk 0:00:35]}  fxg5 {[%clk 0:01:28]} 41. Be2 {[%clk 0:00:35]}  Bc4 {[%clk 0:01:22]} 42. Bf3 {[%clk 0:00:32]}  Kb5 {[%clk 0:01:18]} 43. Kd4 {[%clk 0:00:31]}  Bb3 {[%clk 0:01:17]} 44. Kc3 {[%clk 0:00:25]}  Ka4 {[%clk 0:01:12]} 45. Kb2 {[%clk 0:00:23]}  Be6 {[%clk 0:01:12]} 46. Bd1+ {[%clk 0:00:22]}  Kb5 {[%clk 0:01:10]} 47. Kc3 {[%clk 0:00:22]}  Kc5 {[%clk 0:01:07]} 48. Bf3 {[%clk 0:00:22]}  gxh4 {[%clk 0:01:04]} 49. gxh4 {[%clk 0:00:22]}  Bf5 {[%clk 0:01:03]} 50. Bg2 {[%clk 0:00:22]} 1/2-1/2


[Site "https://www.chess.com"]